bitfinex/quotes_SOLUSD_20250422
["timestamp","ask_amount","ask_price","bid_price","bid_amount"]
[1745360261049,22.43599839,148.17,148.11,22.43599839]
[1745360261456,22.43599839,148.16,148.11,22.43599839]
[1745360261675,22.43599839,148.16,148.1,22.43599839]
[1745360261845,22.43599839,148.16,148.11,22.43599839]
[1745360262361,6.74854906,148.18,148.07,82.0]
[1745360262362,22.43599839,148.18,148.12,22.43599839]
[1745360263083,22.43599839,148.17,148.12,22.43599839]
[1745360263451,6.74868831,148.18,148.12,22.43599839]
[1745360263652,22.43599839,148.17,148.12,22.43599839]
[1745360263865,6.74868831,148.18,148.12,22.43599839]
[1745360264181,22.43599839,148.17,148.12,22.43599839]
[1745360264375,22.43599839,148.16,148.07,82.0]
[1745360264682,22.43599839,148.16,148.11,22.43599839]
[1745360264975,29.18549175,148.16,148.1,22.43599839]
[1745360265553,29.18549175,148.16,148.11,22.43599839]
[1745360265949,29.18516715,148.17,148.11,22.43599839]
[1745360266774,22.43599839,148.16,148.11,22.43599839]
[1745360267071,29.18549733,148.16,148.07,82.0]
[1745360267254,29.18549733,148.16,148.1,22.43599839]
[1745360267571,29.18549733,148.16,148.05,35.501838]
[1745360267572,22.43599839,148.12,148.05,6.3115]
[1745360267747,22.43599839,148.12,148.07,22.43599839]
[1745360267945,22.43599839,148.12,148.05,6.3115]
[1745360268145,22.43599839,148.12,148.07,22.43599839]
[1745360268349,16.86994947,148.2,148.1,22.43599839]
[1745360268551,18.64964886,148.19,148.12,22.43599839]
[1745360268775,22.43599839,148.16,148.05,128.34178921]
[1745360268954,22.43599839,148.16,148.11,22.43599839]
[1745360269154,22.43599839,148.16,148.05,210.34178921]
[1745360269478,22.43599839,148.17,148.12,22.43599839]
[1745360269870,1.0742338,148.24,148.16,22.43599839]
[1745360270052,22.43599839,148.21,148.16,22.43599839]
[1745360271277,22.43599839,148.23,148.18,22.43599839]
[1745360271571,22.43599839,148.23,148.12,112.17159839]
[1745360271751,48.43599839,148.23,148.17,22.43599839]
[1745360272149,22.43599839,148.22,148.12,112.17159839]
[1745360272469,22.43599839,148.21,148.16,22.43599839]
[1745360272671,22.43599839,148.22,148.16,22.43599839]
[1745360273472,22.43599839,148.17,148.12,1.5354]
[1745360273675,22.43599839,148.14,148.09,22.43599839]
[1745360273991,22.43599839,148.14,148.08,6.2002]
[1745360274173,22.43599839,148.13,148.08,6.2002]
[1745360274576,22.43599839,148.12,148.06,22.43599839]
[1745360275583,22.43599839,148.11,148.05,22.43599839]
[1745360275780,22.43599839,148.07,148.02,0.063]
[1745360275958,47.72104725,148.12,148.02,0.063]
[1745360276158,6.75128274,148.12,148.02,0.063]
[1745360276357,22.43599839,148.11,148.02,0.063]
[1745360276585,22.43599839,148.11,148.05,22.43599839]
[1745360276961,22.43599839,148.1,148.04,22.43599839]
[1745360277273,22.43599839,148.08,148.02,0.063]
[1745360277465,22.43599839,148.07,148.02,0.063]
[1745360277789,26.0,148.1,148.05,22.43599839]
[1745360277966,22.43599839,148.11,148.06,22.43599839]
[1745360278165,22.43599839,148.12,148.07,22.43599839]
[1745360278367,26.0,148.13,148.07,22.43599839]
[1745360278570,48.43599839,148.13,148.08,22.43599839]
[1745360278783,22.43599839,148.12,148.07,22.43599839]
[1745360279298,22.43599839,148.12,148.06,22.43599839]
[1745360279588,22.43599839,148.1,148.05,22.43599839]
[1745360279796,22.43599839,148.11,148.05,22.43599839]
[1745360280789,22.43599839,148.1,148.05,22.43599839]
[1745360281084,22.43599839,148.06,148.02,0.063]
[1745360281286,22.43599839,148.05,148.02,0.063]
[1745360281993,22.43599839,148.08,148.02,0.063]
[1745360282192,27.5549,148.1,148.02,0.063]
[1745360282193,22.43599839,148.03,148.02,0.063]
[1745360283464,41.08564725,148.03,148.02,0.063]
[1745360284502,41.08564725,148.03,147.93,0.063]
[1745360284503,22.43599839,147.96,147.93,0.063]
[1745360284795,26.0,148.0,147.93,0.063]
[1745360285005,32.75538742,148.03,147.96,22.43599839]
[1745360285172,22.43599839,148.01,147.96,22.43599839]
[1745360285788,6.7549383,148.04,147.98,22.43599839]
[1745360285987,29.19093669,148.04,147.98,22.43599839]
[1745360286183,22.43599839,148.03,147.93,0.063]
[1745360286503,29.19144758,148.03,147.98,22.43599839]
[1745360286690,59.97869286,148.11,148.01,22.43599839]
[1745360286691,18.64964886,148.08,148.01,22.43599839]
[1745360286894,26.0,148.07,148.01,22.43599839]
[1745360287073,26.0,148.06,148.02,22.43599839]
[1745360287689,48.43599839,148.06,148.01,22.43599839]
[1745360287994,22.43599839,148.08,148.02,22.43599839]
[1745360288292,29.18949134,148.08,148.03,22.43599839]
[1745360288493,22.43599839,148.08,148.02,22.43599839]
[1745360288673,22.43599839,148.08,147.98,30.16919839]
[1745360288873,22.43599839,148.08,148.02,22.43599839]
[1745360289176,22.43599839,148.07,148.02,22.43599839]
[1745360289485,22.43599839,148.04,147.98,7.7332]
[1745360289687,22.43599839,148.01,147.95,6.0831]
[1745360289876,6.75607783,148.02,147.96,0.063]
[1745360289877,22.43599839,148.0,147.96,0.063]
[1745360290080,26.0,148.03,147.97,22.43599839]
[1745360290489,48.43599839,148.03,147.98,22.43599839]
[1745360290691,48.43599839,148.03,147.97,22.43599839]
[1745360290890,22.43599839,148.02,147.97,22.43599839]
[1745360292178,22.43599839,148.02,147.96,0.063]
[1745360292179,22.43599839,147.99,147.96,0.063]
[1745360292386,22.43599839,148.01,147.96,22.49899839]
[1745360292580,22.43599839,148.02,147.96,22.49899839]
[1745360292899,48.43599839,148.03,147.97,22.43599839]
[1745360293101,27.7749,148.09,147.99,22.43599839]
[1745360293311,22.43599839,148.05,147.99,22.43599839]
[1745360293608,6.75401864,148.06,147.99,22.43599839]
[1745360293905,22.43599839,148.05,147.99,22.43599839]
[1745360294106,22.43599839,148.06,148.0,22.43599839]
[1745360294269,22.43599839,148.06,148.01,22.43599839]
[1745360294474,6.5467,148.11,148.02,22.43599839]
[1745360294704,1.6581,148.12,148.05,22.43599839]
[1745360294906,22.43599839,148.12,148.07,22.43599839]
[1745360295079,22.43599839,148.13,148.08,22.43599839]
[1745360295399,22.43599839,148.13,148.01,52.06]
[1745360295584,22.43599839,148.12,148.07,22.43599839]
[1745360295783,22.43599839,148.14,148.08,22.43599839]
[1745360296099,0.03,148.17,148.11,22.43599839]
[1745360296295,22.43599839,148.16,148.1,22.43599839]
[1745360296492,22.43599839,148.16,148.11,22.43599839]
[1745360296697,22.46599839,148.17,148.11,22.43599839]
[1745360297007,22.43599839,148.16,148.11,22.43599839]
[1745360297401,29.21516678,148.17,148.11,22.43599839]
[1745360297596,6.77916839,148.17,148.12,22.43599839]
[1745360297797,22.46599839,148.17,148.12,22.43599839]
[1745360297982,22.43599839,148.16,148.08,6.5145]
[1745360298401,0.03,148.17,148.15,22.43599839]
[1745360298589,0.03,148.17,148.16,22.43599839]
[1745360299509,0.03,148.17,148.14,3.4079609]
[1745360299811,0.03,148.17,148.16,22.43599839]
[1745360301803,0.03,148.17,148.1,1.5859]
[1745360302005,22.43599839,148.16,148.1,24.02189839]
[1745360302215,22.43599839,148.15,148.1,24.02189839]
[1745360302588,0.03,148.17,148.1,24.02189839]
[1745360302589,0.03,148.17,148.12,22.43599839]
[1745360303287,22.46599839,148.17,148.12,22.43599839]
[1745360304121,22.43599839,148.16,148.11,22.43599839]
[1745360304404,22.43599839,148.15,148.1,22.43599839]
[1745360304987,22.43599839,148.16,148.11,22.43599839]
[1745360305717,22.46599839,148.17,148.12,22.43599839]
[1745360306209,22.46599839,148.17,148.11,22.43599839]
[1745360306412,0.03,148.17,148.12,22.43599839]
[1745360306992,0.03,148.17,148.13,22.43599839]
[1745360307209,0.03,148.17,148.14,22.43599839]
[1745360307739,0.03,148.17,148.15,22.43599839]
[1745360307900,0.03,148.17,148.09,26.06]
[1745360308212,0.03,148.17,148.13,22.43599839]
[1745360308595,0.03,148.17,148.16,22.43599839]
[1745360312729,0.03,148.17,148.15,1.603]
[1745360313113,0.03,148.17,148.16,22.43599839]
[1745360314320,0.03,148.17,148.15,1.603]
[1745360314525,0.03,148.17,148.16,22.43599839]
[1745360314922,0.03,148.17,148.12,82.0]
[1745360315119,0.03,148.17,148.14,22.43599839]
[1745360315526,0.03,148.17,148.15,22.43599839]
[1745360315907,0.03,148.17,148.16,22.43599839]
[1745360318828,0.03,148.17,148.16,35.84795843]
[1745360319126,0.03,148.17,148.16,29.09849839]
[1745360321110,0.03,148.17,148.15,82.0]
[1745360321423,0.03,148.17,148.11,6.6625]
[1745360321626,0.03,148.17,148.14,22.43599839]
[1745360322019,0.03,148.17,148.15,22.43599839]
[1745360323337,0.03,148.17,148.16,22.43599839]
[1745360324938,0.03,148.17,148.16,29.18545843]
[1745360325514,0.03,148.23,148.16,114.45510729]
[1745360325718,0.03,148.23,148.17,25.86]
[1745360325923,0.03,148.23,148.21,22.43599839]
[1745360326124,0.03,148.23,148.17,25.86]
[1745360326342,0.03,148.23,148.2,22.43599839]
[1745360326720,0.03,148.23,148.22,22.43599839]
[1745360327121,0.03,148.23,148.21,22.43599839]
[1745360327727,0.03,148.23,148.22,22.43599839]
[1745360328231,0.03,148.23,148.17,25.86]
[1745360328435,0.03,148.23,148.21,22.43599839]
[1745360329518,0.03,148.23,148.22,22.43599839]
[1745360329936,0.03,148.23,148.17,25.86]
[1745360330139,0.03,148.23,148.21,22.43599839]
[1745360330320,0.03,148.23,148.2,22.43599839]
[1745360331414,0.03,148.23,148.19,22.43599839]
[1745360331819,0.03,148.23,148.18,22.43599839]
[1745360332241,22.46599839,148.23,148.18,22.43599839]
[1745360332439,0.03,148.23,148.18,22.43599839]
[1745360333235,0.03,148.23,148.17,25.86]
[1745360333424,0.03,148.23,148.18,22.43599839]
[1745360333925,22.46599839,148.23,148.17,25.86]
[1745360334134,22.46599839,148.23,148.17,22.43599839]
[1745360334336,22.43599839,148.21,148.16,22.43599839]
[1745360334656,22.43599839,148.21,148.15,22.43599839]
[1745360335154,6.74763832,148.2,148.15,22.43599839]
[1745360335333,6.74763832,148.2,148.16,22.43599839]
[1745360336049,6.7472847,148.21,148.13,25.86]
[1745360336348,6.7472847,148.21,148.17,22.43599839]
[1745360337046,26.03,148.23,148.19,22.43599839]
[1745360337047,0.03,148.23,148.19,22.43599839]
[1745360337240,0.03,148.23,148.18,22.43599839]
[1745360337450,22.46599839,148.23,148.18,22.43599839]
[1745360337657,0.03,148.23,148.18,22.43599839]
[1745360337822,22.43599839,148.22,148.17,22.43599839]
[1745360338459,22.43599839,148.22,148.16,22.43599839]
[1745360339035,29.18296405,148.22,148.16,22.43599839]
[1745360339236,29.18296405,148.22,148.13,25.86]
[1745360339451,29.18296405,148.22,148.16,22.43599839]
[1745360339663,29.18296405,148.22,148.17,22.43599839]
[1745360340251,22.46599839,148.23,148.18,22.43599839]
[1745360340566,29.2123151,148.23,148.18,22.43599839]
[1745360341260,20.78833487,148.23,148.18,14.01201816]
[1745360342164,20.78833487,148.23,148.13,25.86]
[1745360342364,20.78833487,148.23,148.13,107.86]
[1745360342567,14.01201816,148.17,148.1,6.5153]
[1745360342861,14.01201816,148.15,148.1,14.07501816]
[1745360343437,32.74763832,148.2,148.12,14.01201816]
[1745360343662,14.01201816,148.16,148.1,14.07501816]
[1745360344158,14.01201816,148.16,148.11,14.01201816]
[1745360344566,32.66166702,148.19,148.11,14.01201816]
[1745360344861,14.01201816,148.16,148.11,14.01201816]
[1745360345260,22.44016184,148.16,148.11,22.44016184]
[1745360345765,22.44016184,148.17,148.12,22.44016184]
[1745360346570,22.44016184,148.18,148.13,22.44016184]
[1745360346771,6.74813938,148.19,148.14,22.44016184]
[1745360346939,22.44016184,148.19,148.14,22.44016184]
[1745360347740,48.44016184,148.2,148.15,22.44016184]
[1745360347965,22.44016184,148.21,148.16,22.44016184]
[1745360348742,29.18734638,148.21,148.16,22.44016184]
[1745360348943,0.03,148.23,148.17,22.44016184]
[1745360349252,22.44016184,148.21,148.12,22.44016184]
[1745360349440,22.44016184,148.21,148.15,22.44016184]
[1745360349636,22.44016184,148.22,148.17,22.44016184]
[1745360350038,22.44016184,148.21,148.16,22.44016184]
[1745360350261,22.44016184,148.18,148.1,82.063]
[1745360350573,22.44016184,148.18,148.13,22.44016184]
[1745360350953,29.18916636,148.17,148.12,22.44016184]
[1745360351464,29.18916636,148.17,148.1,0.063]
[1745360351654,29.18916636,148.17,148.12,22.44016184]
[1745360351859,6.74900452,148.17,148.12,22.44016184]
[1745360352248,29.18916636,148.17,148.12,22.44016184]
[1745360352455,6.7487041,148.18,148.13,22.44016184]
[1745360352849,29.18886594,148.18,148.13,22.44016184]
[1745360353575,22.44016184,148.17,148.1,0.063]
[1745360353745,22.44016184,148.15,148.1,0.063]
[1745360354263,22.44016184,148.13,148.1,0.063]
[1745360354469,18.64964886,148.15,148.1,0.063]
[1745360354671,22.44016184,148.13,148.1,0.063]
[1745360355076,6.75173857,148.11,148.1,0.063]
[1745360355250,29.19190041,148.11,148.1,0.063]
[1745360355455,22.44016184,148.11,148.1,0.063]
[1745360356071,29.19152499,148.12,148.1,0.063]
[1745360356369,27.5359,148.16,148.1,0.063]
[1745360356370,22.44016184,148.14,148.1,0.063]
[1745360356675,29.19011377,148.15,148.1,22.50316184]
[1745360356873,22.44016184,148.14,148.1,0.063]
[1745360357081,22.44016184,148.13,148.1,0.063]
[1745360357285,22.44016184,148.12,148.1,0.063]
[1745360357452,22.44016184,148.11,148.1,0.063]
[1745360357652,6.75044965,148.14,148.1,0.063]
[1745360358268,29.19061149,148.14,148.1,0.063]
[1745360358473,6.75044965,148.14,148.1,0.063]
[1745360358684,22.44016184,148.13,148.1,0.063]
[1745360358980,29.19103498,148.13,148.1,0.063]
[1745360359182,22.44016184,148.12,148.1,0.063]
[1745360359968,22.44016184,148.13,148.1,0.063]
[1745360360762,22.44016184,148.12,148.1,0.063]
[1745360361081,29.19152453,148.12,148.1,0.063]
[1745360362270,6.74854906,148.18,148.11,22.44016184]
[1745360362454,22.44016184,148.17,148.11,22.44016184]
[1745360362957,29.18918386,148.17,148.11,22.44016184]
[1745360363149,22.44016184,148.16,148.1,0.063]
[1745360363349,22.44016184,148.16,148.1,22.50316184]
[1745360363754,22.44016184,148.16,148.11,22.44016184]
[1745360363954,6.74902202,148.17,148.12,22.44016184]
[1745360363955,22.44016184,148.17,148.12,22.44016184]
[1745360364284,6.74672783,148.22,148.16,22.44016184]
[1745360364454,22.44016184,148.22,148.16,22.44016184]
[1745360364658,8.0771,148.16,148.1,0.063]
[1745360364992,22.44016184,148.11,148.1,0.063]
[1745360366173,22.44016184,148.12,148.1,0.063]
[1745360366487,22.44016184,148.14,148.1,0.063]
[1745360366661,73.84012976,148.15,148.1,0.063]
[1745360366861,48.44016184,148.15,148.1,0.063]
[1745360367379,55.19008562,148.15,148.1,0.063]
[1745360367576,26.0,148.15,148.1,0.063]
[1745360367887,22.44016184,148.15,148.1,0.063]
[1745360368363,22.44016184,148.16,148.1,22.50316184]
[1745360368565,6.74854906,148.18,148.1,0.063]
[1745360368878,22.44016184,148.15,148.1,0.063]
[1745360369066,29.19053311,148.14,148.1,0.063]
[1745360369265,22.44016184,148.11,148.1,0.063]
[1745360370078,41.0898107,148.11,148.1,0.063]
[1745360371282,47.84154927,148.11,148.1,0.063]
[1745360371486,22.44016184,148.11,148.1,0.063]
[1745360371857,29.19190041,148.11,148.1,0.063]
[1745360372259,22.44016184,148.11,148.1,0.063]
[1745360372887,29.19190041,148.11,148.1,0.063]
[1745360373389,22.44016184,148.11,148.1,0.063]
[1745360374113,29.19190041,148.11,148.1,0.063]
[1745360375087,47.84154927,148.11,148.1,0.063]
[1745360375295,73.84154927,148.11,148.1,0.063]
[1745360378193,73.84154927,148.11,148.09,0.063]
[1745360378194,73.84154927,148.11,148.04,0.063]
[1745360378365,22.44016184,148.05,148.04,0.063]
[1745360378563,26.0,148.07,148.04,0.063]
[1745360378887,63.52997254,148.05,148.04,0.063]
[1745360379392,70.28444737,148.05,148.04,0.063]
[1745360383170,70.28444737,148.05,148.04,1e-08]
[1745360383370,25.4059491,148.01,147.96,0.063]
[1745360383682,12.2008092,147.98,147.96,0.063]
[1745360383865,22.44016184,147.98,147.96,0.063]
[1745360384069,22.44016184,147.99,147.96,0.063]
[1745360384565,25.4059491,148.01,147.96,0.063]
[1745360384566,22.44016184,148.0,147.96,0.063]
[1745360384784,6.75493109,148.04,147.96,0.063]
[1745360384961,22.44016184,148.02,147.96,22.50316184]
[1745360385165,6.75459644,148.05,147.98,22.44016184]
[1745360385467,22.44016184,148.03,147.97,22.44016184]
[1745360385673,18.64964886,148.1,148.01,22.44016184]
[1745360385972,22.44016184,148.07,148.02,22.44016184]
[1745360386483,22.44016184,148.07,148.0,1.524]
[1745360386685,22.44016184,148.07,148.02,22.44016184]
[1745360386998,6.75317447,148.08,148.02,22.44016184]
[1745360387285,6.75317447,148.08,148.0,1.524]
[1745360387286,22.44016184,148.06,148.01,22.44016184]
[1745360387675,22.44016184,148.07,148.01,22.44016184]
[1745360388275,22.44016184,148.07,148.0,1.524]
[1745360388276,22.44016184,148.07,148.02,22.44016184]
[1745360388791,48.44016184,148.09,148.04,22.44016184]
[1745360389192,22.44016184,148.08,148.02,6.3082]
[1745360389497,22.44016184,148.06,148.02,6.3082]
[1745360390084,22.44016184,148.07,148.02,6.3082]
[1745360390389,48.44016184,148.09,148.04,22.44016184]
[1745360390689,22.44016184,148.08,148.03,22.44016184]
[1745360390895,22.44016184,148.08,148.02,6.3082]
[1745360391074,22.44016184,148.08,148.03,22.44016184]
[1745360391688,22.44016184,148.12,148.03,22.44016184]
[1745360391872,22.44016184,148.09,148.04,22.44016184]
[1745360392972,22.44016184,148.09,148.02,6.3082]
[1745360393174,22.44016184,148.09,148.04,22.44016184]
[1745360393692,6.75222872,148.1,148.04,22.44016184]
[1745360393894,22.44016184,148.09,148.04,22.44016184]
[1745360394376,6.75222872,148.1,148.04,22.44016184]
[1745360394573,22.44016184,148.1,148.04,22.44016184]
[1745360394903,22.44016184,148.1,148.05,22.44016184]
[1745360395399,29.19245431,148.1,148.05,22.44016184]
[1745360396103,6.75229247,148.1,148.05,22.44016184]
[1745360396307,29.19245431,148.1,148.05,22.44016184]
[1745360396478,22.44016184,148.09,148.04,22.44016184]
[1745360396810,22.44016184,148.07,148.01,22.44016184]
[1745360396981,22.44016184,148.06,148.01,22.44016184]
[1745360397706,29.19459829,148.06,148.01,22.44016184]
[1745360398900,22.44016184,148.05,148.0,23.96416184]
[1745360399307,22.44016184,148.05,148.0,22.44016184]
[1745360400008,29.19484123,148.05,147.99,6.0494]
[1745360400179,29.19484123,148.05,147.99,28.48956184]
[1745360400503,22.44016184,148.01,147.97,1.6584]
[1745360400705,22.44016184,148.01,147.96,22.50316184]
[1745360401376,18.64964886,148.04,147.96,0.063]
[1745360401604,18.64964886,148.04,147.96,22.50316184]
[1745360401900,22.44016184,148.0,147.96,0.063]
[1745360402702,22.44016184,148.01,147.96,0.063]
[1745360403001,1.6271,148.32,148.14,1.0]
[1745360403194,20.0,148.38,148.22,22.44016184]
[1745360403195,22.44016184,148.35,148.22,22.44016184]
[1745360403399,22.44016184,148.34,148.23,22.44016184]
[1745360403801,26.0,148.33,148.23,22.44016184]
[1745360404008,1.6271,148.38,148.23,44.88032368]
[1745360404190,48.44016184,148.36,148.26,44.88032368]
[1745360404390,22.44016184,148.35,148.26,44.88032368]
[1745360404796,22.44016184,148.35,148.26,22.44016184]
[1745360404999,0.03,148.27,148.26,44.88032368]
[1745360405308,22.44016184,148.38,148.26,44.88032368]
[1745360405491,48.44016184,148.37,148.31,22.44016184]
[1745360405686,22.44016184,148.36,148.3,22.44016184]
[1745360406087,18.64964886,148.38,148.26,22.44016184]
[1745360406312,22.44016184,148.35,148.26,22.44016184]
[1745360406500,44.64964886,148.34,148.26,22.44016184]
[1745360406702,22.44016184,148.32,148.2,6.74763832]
[1745360406906,22.44016184,148.32,148.27,22.44016184]
[1745360407307,18.64964886,148.32,148.2,32.74763832]
[1745360407612,18.64964886,148.32,148.27,22.44016184]
[1745360407989,18.64964886,148.32,148.2,26.0]
[1745360407990,18.64964886,148.3,148.2,26.0]
[1745360408211,18.64964886,148.3,148.25,22.44016184]
[1745360408712,26.0,148.34,148.29,22.44016184]
[1745360409091,48.44016184,148.34,148.29,22.44016184]
[1745360409725,18.64964886,148.4,148.33,22.44016184]
[1745360410021,26.0,148.36,148.33,22.44016184]
[1745360410391,18.64964886,148.37,148.33,22.44016184]
[1745360410601,25.81670224,148.46,148.35,22.44016184]
[1745360410818,22.44016184,148.4,148.34,22.44016184]
[1745360411119,48.44016184,148.38,148.32,22.44016184]
[1745360411321,48.44016184,148.38,148.33,22.44016184]
[1745360411529,48.44016184,148.38,148.26,22.44016184]
[1745360411530,26.0,148.38,148.34,22.44016184]
[1745360412023,26.0,148.38,148.26,22.44016184]
[1745360412513,26.0,148.38,148.34,22.44016184]
[1745360412904,26.0,148.38,148.37,22.44016184]
[1745360413198,25.52,148.45,148.36,22.44016184]
[1745360413199,6.73672864,148.44,148.36,22.44016184]
[1745360413402,22.44016184,148.44,148.39,22.44016184]
[1745360413611,24.06726184,148.46,148.4,22.44016184]
[1745360413912,22.44016184,148.48,148.43,22.44016184]
[1745360414215,8.0869,148.52,148.47,22.44016184]
[1745360414510,22.44016184,148.51,148.46,22.44016184]
[1745360415091,1.0742338,148.53,148.48,22.44016184]
[1745360415287,23.51439564,148.53,148.48,22.44016184]
[1745360415718,1.0742338,148.53,148.49,22.44016184]
[1745360415916,22.44016184,148.5,148.4,47.78016184]
[1745360416099,22.44016184,148.52,148.46,22.44016184]
[1745360416299,1.0742338,148.53,148.48,22.44016184]
[1745360416503,49.51439564,148.53,148.48,22.44016184]
[1745360416715,23.51439564,148.53,148.48,22.44016184]
[1745360417012,23.51439564,148.53,148.47,22.44016184]
[1745360417013,22.44016184,148.52,148.47,22.44016184]
[1745360417219,27.0742338,148.53,148.48,22.44016184]
[1745360417397,1.0742338,148.53,148.49,32.98521038]
[1745360418115,1.0742338,148.53,148.5,32.98521038]
[1745360418899,1.0742338,148.53,148.51,32.98521038]
[1745360420204,26.0,148.56,148.51,32.98521038]
[1745360420523,58.98521038,148.56,148.51,32.98521038]
[1745360421611,26.0,148.56,148.53,32.98521038]
[1745360421806,32.98521038,148.57,148.52,32.98521038]
[1745360422014,32.98521038,148.55,148.5,32.98521038]
[1745360422207,1.5868,148.65,148.5,25.32]
[1745360422401,32.98521038,148.62,148.56,32.98521038]
[1745360422606,32.98521038,148.62,148.57,32.98521038]
[1745360422904,6.72723067,148.65,148.59,32.98521038]
[1745360423104,32.98521038,148.64,148.59,32.98521038]
[1745360423407,32.98521038,148.65,148.59,32.98521038]
[1745360423818,32.98521038,148.63,148.58,32.98521038]
[1745360424020,32.98521038,148.63,148.57,32.98521038]
[1745360424223,32.98521038,148.58,148.5,26.0]
[1745360424422,32.98521038,148.58,148.53,32.98521038]
[1745360424629,32.98521038,148.58,148.52,32.98521038]
[1745360424814,32.98521038,148.59,148.53,32.98521038]
[1745360425126,32.98521038,148.58,148.5,26.0]
[1745360425328,32.98521038,148.59,148.54,32.98521038]
[1745360426426,32.98521038,148.6,148.55,32.98521038]
[1745360426820,6.7290901,148.61,148.54,32.98521038]
[1745360426821,32.98521038,148.59,148.54,32.98521038]
[1745360427528,32.98521038,148.6,148.55,32.98521038]
[1745360427705,32.98521038,148.58,148.48,51.32]
[1745360427907,32.98521038,148.58,148.53,32.98521038]
[1745360428125,32.98521038,148.59,148.54,32.98521038]
[1745360428309,6.73038093,148.58,148.54,32.98521038]
[1745360428521,26.0,148.62,148.57,32.98521038]
[1745360428830,6.72907304,148.61,148.57,32.98521038]
[1745360429930,32.98521038,148.6,148.54,32.98521038]
[1745360430310,6.72992798,148.59,148.55,32.98521038]
[1745360430930,6.7285695,148.62,148.57,32.98521038]
[1745360431121,6.7285695,148.62,148.54,32.98521038]
[1745360431330,39.71377988,148.62,148.57,32.98521038]
[1745360432010,39.71377988,148.62,148.51,66.44]
[1745360432011,6.7285695,148.62,148.58,32.98521038]
[1745360432412,6.7285695,148.62,148.57,32.98521038]
[1745360432614,6.7285695,148.62,148.59,32.98521038]
[1745360433012,6.72675904,148.66,148.61,32.98521038]
[1745360433221,6.72675904,148.66,148.62,32.98521038]
[1745360433623,56.52886703,148.66,148.61,32.98521038]
[1745360434311,6.72675904,148.66,148.63,32.98521038]
[1745360434640,39.71151696,148.67,148.62,32.98521038]
[1745360434936,6.72630658,148.67,148.63,32.98521038]
[1745360435123,39.71151696,148.67,148.62,32.98521038]
[1745360435510,6.72494956,148.7,148.61,32.98521038]
[1745360435723,6.72494956,148.7,148.66,32.98521038]
[1745360435928,6.72494956,148.7,148.58,100.64964886]
[1745360435929,32.98521038,148.69,148.64,32.98521038]
[1745360436431,6.72585418,148.68,148.64,32.98521038]
[1745360436943,6.72494956,148.7,148.67,32.98521038]
[1745360437246,6.72494956,148.7,148.66,32.98521038]
[1745360437425,6.72494956,148.7,148.67,22.27273789]
[1745360437736,6.72494956,148.7,148.66,22.27273789]
[1745360437940,6.72494956,148.7,148.67,22.27273789]
[1745360438449,6.75462497,148.71,148.67,22.27273789]
[1745360438761,0.03,148.71,148.62,40.44]
[1745360438911,0.03,148.71,148.61,22.27273789]
[1745360439110,22.30273789,148.71,148.65,22.27273789]
[1745360439429,22.27273789,148.67,148.6,82.0]
[1745360439744,22.27273789,148.64,148.56,25.3]
[1745360440037,22.27273789,148.64,148.59,22.27273789]
[1745360440429,6.72721157,148.65,148.56,25.3]
[1745360440630,6.72721157,148.65,148.62,22.27273789]
[1745360440837,6.72585418,148.68,148.63,22.27273789]
[1745360441033,28.99859207,148.68,148.63,22.27273789]
[1745360441654,22.27273789,148.7,148.65,22.27273789]
[1745360441943,22.27273789,148.68,148.58,66.44]
[1745360442237,22.27273789,148.68,148.63,22.27273789]
[1745360442453,22.27273789,148.67,148.62,22.27273789]
[1745360442622,23.53737864,148.7,148.58,26.0]
[1745360442623,16.8123739,148.7,148.58,26.0]
[1745360442818,22.27273789,148.68,148.63,22.27273789]
[1745360443323,22.27273789,148.64,148.56,25.3]
[1745360443535,22.27273789,148.63,148.58,22.27273789]
[1745360443732,22.27273789,148.62,148.57,22.27273789]
[1745360444116,22.27273789,148.63,148.58,22.27273789]
[1745360444626,22.27273789,148.64,148.59,22.27273789]
[1745360444831,22.27273789,148.65,148.6,22.27273789]
[1745360445422,28.99949693,148.66,148.61,22.27273789]
[1745360445860,22.27273789,148.65,148.6,22.27273789]
[1745360446551,0.03,148.71,148.61,22.27273789]
[1745360446730,22.27273789,148.7,148.65,22.27273789]
[1745360446926,22.27273789,148.66,148.61,2.33051099]
[1745360447235,8.0054,148.69,148.56,25.3]
[1745360447236,8.0054,148.69,148.62,24.60324888]
[1745360447446,22.27273789,148.68,148.62,24.60324888]
[1745360447836,22.27273789,148.67,148.63,2.33051099]